fUSD/lending_fUSD_20240105
["ID","MTS","AMOUNT","RATE_DAILY","PERIOD"]
[310350537,1704491443936,-153.0,0.00028187,2]
[310350538,1704491443946,-152.697,0.00028187,2]
[310350539,1704491443956,-152.586,0.00028187,2]
[310350540,1704491443966,-215.072,0.00028187,2]
[310350541,1704491443975,-221.134,0.00028187,2]
[310350542,1704491443986,-152.416,0.00028187,2]
[310350543,1704491443997,-161.39,0.00028211,2]
[310350544,1704491444007,-159.8,0.0002822,2]
[310350545,1704491444016,-333.40106,0.00028248,2]
[310350546,1704491444026,-154.21,0.00028338,2]
[310350547,1704491444036,-333.40106,0.00028348,2]
[310350548,1704491444045,-161.39,0.00028415,2]
[310350549,1704491444055,-159.8,0.00028444,2]
[310350550,1704491444065,-333.40106,0.00028448,2]
[310350551,1704491444076,-376.42,0.00028504,2]
[310350552,1704491444210,-333.40106,0.00028548,2]
[310350553,1704491444220,-161.39,0.00028618,2]
[310350554,1704491444230,-871.33907656,0.00028627,2]
[310350555,1704491444239,-154.37992547,0.00028645,2]
[310350556,1704491444250,-333.40106,0.00028648,2]
[310350557,1704491444260,-159.8,0.00028668,2]
[310350558,1704491444268,-154.21,0.00028672,2]
[310350559,1704491444277,-6054.3043,0.000287,2]
[310350560,1704491444286,-744.7107,0.000287,2]
[310350561,1704491444296,-1000.0,0.00028737,7]
[310350562,1704491444305,-333.40106,0.00028748,2]
[310350563,1704491444318,-52851.89450884,0.000288,2]
[310350564,1704491444358,-13635.89711409,0.000288,2]
[310350565,1704491444371,-767.51465953,0.000288,2]
[310350566,1704491444396,-912.999999,0.000288,2]
[310350567,1704491444421,-560.46129455,0.000288,2]
[310350568,1704491444432,-311.54207616,0.000288,2]
[310350570,1704491446207,-998.13995167,0.000288,2]
[310350571,1704491446220,-535.5599681,0.000288,2]
[310350572,1704491446268,-640.77986146,0.000288,2]
[310350573,1704491446280,-6190.15256111,0.000288,2]
[310350574,1704491446291,-773.1408517,0.000288,2]
[310350575,1704491446384,-2212.67590498,0.000288,2]
[310350582,1704491513886,36246.65168365,0.00022522,2]
[310350584,1704491631003,50704.58900947,0.00023,2]
[310350586,1704491732426,5175.7863842,0.00023,2]
[310350587,1704491733905,15667.99021026,0.00023,2]
[310350588,1704491749439,15716.71116645,0.00023,2]
[310350590,1704491950314,200.23916985,0.00022885,2]
[310350625,1704492632296,-383.14380678,0.00023851,2]
[310350627,1704492632307,-244.43466943,0.00023851,2]
[310350629,1704492632316,-313.44611819,0.00023852,2]
[310350631,1704492632325,-206.0,0.00023854,2]
[310350633,1704492632333,-2270.76252099,0.00024603,2]
[310350635,1704492632344,-1064.22017222,0.00024603,2]
[310350637,1704492632355,-492.18609625,0.00024603,2]
[310350645,1704492632433,-750.0,0.00024603,2]
[310350647,1704492632445,-297.00000009,0.00024603,2]
[310350650,1704492632456,-1191.11904289,0.00024603,2]
[310350653,1704492632475,-310.16,0.00024603,2]
[310350682,1704492632703,-1113.35633959,0.00024603,2]
[310350685,1704492632713,-403.38,0.00024604,2]
[310350689,1704492632722,-154.37992547,0.00024692,2]
[310350693,1704492632731,-10496.83606875,0.00024771,2]
[310350696,1704492632741,-559.19420109,0.00024795,2]
[310350699,1704492632751,-150.0,0.000248,2]
[310350702,1704492632761,-709.78,0.00025154,2]
[310350705,1704492632770,-299.99,0.00025154,7]
[310350708,1704492632780,-719.88,0.00025504,2]
[310350711,1704492632789,-728.67,0.00025965,2]
[310350714,1704492632799,-12931.9,0.00026427,2]
[310350717,1704492632809,-413.11,0.00026432,2]
[310350720,1704492632819,-206.0,0.00026436,6]
[310350723,1704492632829,-150.0,0.00026448,2]
[310350726,1704492632839,-417.96,0.00026451,2]
[310350729,1704492632848,-683.25,0.00026484,2]
[310350732,1704492632857,-150.0,0.00026506,2]
[310350734,1704492632867,-157.46,0.00026526,2]
[310350736,1704492632877,-250.0,0.00026529,2]
[310350738,1704492632888,-250.0,0.00026529,2]
[310350740,1704492632897,-166.5,0.00026649,2]
[310350742,1704492632906,-156.02,0.00026755,2]
[310350744,1704492632916,-174.29,0.00026815,2]
[310350746,1704492632925,-157.01,0.0002682,2]
[310350748,1704492632935,-403.38,0.00026868,2]
[310350750,1704492632945,-1250.0,0.00027,3]
[310350752,1704492632955,-333.40106,0.00027048,2]
[310350754,1704492632964,-154.22,0.00027122,2]
[310350756,1704492632974,-333.40106,0.00027148,2]
[310350758,1704492632984,-333.40106,0.00027248,2]
[310350760,1704492632994,-582.04,0.00027288,2]
[310350762,1704492633004,-333.40106,0.00027348,2]
[310350764,1704492633015,-161.39,0.00027397,2]
[310350766,1704492633025,-250.0,0.00027397,2]
[310350768,1704492633034,-250.0,0.000274,2]
[310350770,1704492633044,-413.11,0.0002741,2]
[310350772,1704492633055,-333.40106,0.00027448,2]
[310350775,1704492633065,-185.0838504,0.000275,2]
[310350777,1704492633076,-333.40106,0.00027548,2]
[310350779,1704492633086,-2684.20647902,0.0002755,2]
[310350781,1704492633096,-333.40106,0.00027648,2]
[310350783,1704492633106,-333.40106,0.00027748,2]
[310350785,1704492633115,-333.40106,0.00027848,2]
[310350786,1704492633125,-3112.61482741,0.00027945,2]
[310350789,1704492633218,-1490.41292481,0.00027945,2]
[310350818,1704492638938,-412.92901,0.00027945,2]
[310350819,1704492639027,-2442.79323778,0.00027945,2]
[310350820,1704492639038,-169.72,0.00027945,2]
[310350821,1704492639047,-333.40106,0.00027948,2]
[310350822,1704492639058,-333.40106,0.00028048,2]
[310350823,1704492639067,-2087.67108718,0.00028111,3]
[310350824,1704492639077,-333.40106,0.00028148,2]
[310350825,1704492639086,-333.40106,0.00028248,2]
[310350826,1704492639096,-333.40106,0.00028348,2]
[310350827,1704492639106,-413.11,0.00028389,2]
[310350828,1704492639115,-333.40106,0.00028448,2]
[310350829,1704492639125,-1000.0,0.00028475,7]
[310350830,1704492639135,-154.22,0.00028479,2]
[310350831,1704492639144,-333.40106,0.00028548,2]
[310350832,1704492639155,-1000.0,0.00028599,2]
[310350833,1704492639165,-1659.911,0.000286,2]
[310350834,1704492639177,-731.1,0.00028607,2]
[310350835,1704492639187,-266.95831649,0.00028644,2]
[310350836,1704492639197,-333.40106,0.00028648,2]
[310350837,1704492639210,-158.36302786,0.00028698,2]
[310350838,1704492639221,-23363.52363629,0.00028699,2]
[310350886,1704492646369,-220144.2743225,0.00028699,2]
[310350887,1704492646636,-1492.20204121,0.00028699,2]
[310350888,1704492646645,-7068.59795879,0.000287,2]
[310350889,1704492646694,-21304.00647902,0.000287,2]
[310350890,1704492786245,167.85,0.00027807,120]
[310350891,1704492873905,206.0,0.00022854,2]
[310350963,1704493831479,-380.49190557,0.00023703,2]
[310350971,1704493831532,-178.70229552,0.00023703,2]
[310350972,1704493831542,-161.34487123,0.00023704,2]
[310350973,1704493831551,-109.95283325,0.00023711,2]
[310350974,1704493834556,-97.04716675,0.00023711,2]
[310350975,1704493834571,-399.92,0.00024774,2]
[310350976,1704493834582,-150.0,0.000249,2]
[310350977,1704493834594,-731.33,0.00025023,2]
[310350978,1704493834605,-718.95,0.0002539,2]
[310350979,1704493834615,-157.23074067,0.00025733,2]
[310350980,1704493834624,-728.18,0.00025833,2]
[310350981,1704493834633,-1420.45,0.00026431,2]
[310350982,1704493834643,-1808.59,0.00026431,2]
[310350983,1704493834654,-1154.62,0.00026485,2]
[310350984,1704493834664,-665.63,0.00026646,2]
[310350985,1704493834673,-4926.24,0.00026646,2]
[310350986,1704493834683,-150.99,0.00026646,2]
[310350987,1704493834693,-408.63,0.00026657,2]
[310350988,1704493834703,-250.0,0.00026691,2]
[310350989,1704493834712,-159.06,0.00026695,2]
[310350990,1704493834722,-586.56,0.00026696,2]
[310350991,1704493834736,-197.43,0.00026706,2]
[310350992,1704493834746,-207.0,0.00026735,6]
[310350993,1704493834756,-150.0,0.00026784,2]
[310350994,1704493834765,-179.99,0.00026805,2]
[310350995,1704493834776,-174.29,0.00026816,2]
[310350996,1704493834786,-158.75,0.00026888,2]
[310350997,1704493834796,-1250.0,0.00027,3]
[310350998,1704493834805,-158.75,0.00027016,2]
[310350999,1704493834814,-399.92,0.00027037,2]
[310351000,1704493834823,-333.40106,0.00027048,2]
[310351001,1704493834833,-334.37,0.0002712,2]
[310351002,1704493834846,-158.75,0.00027143,2]
[310351003,1704493834858,-333.40106,0.00027148,2]
[310351004,1704493834872,-333.40106,0.00027248,2]
[310351005,1704493834882,-158.75,0.00027271,2]
[310351006,1704493834895,-333.40106,0.00027348,2]
[310351007,1704493834906,-246.77,0.00027397,2]
[310351009,1704493834916,-158.75,0.00027398,2]
[310351012,1704493834927,-250.0,0.000274,2]
[310351015,1704493834938,-333.40106,0.00027448,2]
[310351018,1704493834948,-3180.04163262,0.00027453,2]
[310351021,1704493834958,-158.75,0.00027525,2]
[310351024,1704493834969,-333.40106,0.00027548,2]
[310351027,1704493834978,-408.63,0.00027635,2]
[310351029,1704493834988,-333.40106,0.00027648,2]
[310351031,1704493834998,-158.75,0.00027653,2]
[310351034,1704493835008,-179.99,0.00027698,2]
[310351036,1704493835019,-333.40106,0.00027748,2]
[310351037,1704493835029,-158.75,0.0002778,2]
[310351038,1704493835040,-200.0,0.00027807,2]
[310351039,1704493835050,-333.40106,0.00027848,2]
[310351041,1704493835061,-158.75,0.00027907,2]
[310351043,1704493835071,-142.26529939,0.00027945,2]
[310351045,1704493835094,-843.71710098,0.00027945,2]
[310351046,1704493835109,-646.10174978,0.00027945,2]
[310351057,1704493837926,-4653.98955009,0.00027945,2]
[310351062,1704493840093,-333.75629976,0.00027945,2]
[310351063,1704493840105,-169.72,0.00027945,2]
[310351064,1704493840115,-197.89699052,0.00027948,2]
[310351065,1704493840950,-135.50406948,0.00027948,2]
[310351066,1704493840960,-158.75,0.00028035,2]
[310351067,1704493840970,-333.40106,0.00028048,2]
[310351068,1704493840979,-400.46,0.00028068,2]
[310351069,1704493840988,-128.36509211,0.00028068,2]
[310351073,1704493842790,-272.09490789,0.00028068,2]
[310351074,1704493842800,-400.46,0.00028068,2]
[310351075,1704493842809,-938.33,0.00028068,2]
[310351076,1704493842819,-400.46,0.00028068,2]
[310351077,1704493842828,-1875.7,0.00028068,2]
[310351078,1704493842837,-938.33,0.00028068,2]
[310351079,1704493842846,-400.46,0.00028068,2]
[310351080,1704493842855,-938.33,0.00028068,2]
[310351081,1704493842865,-400.46,0.00028068,2]
[310351082,1704493842874,-938.33,0.00028068,2]
[310351083,1704493842883,-333.40106,0.00028148,2]
[310351084,1704493842893,-158.75,0.00028162,2]
[310351085,1704493842903,-333.40106,0.00028248,2]
[310351087,1704493842912,-158.75,0.0002829,2]
[310351088,1704493842922,-333.40106,0.00028348,2]
[310351089,1704493842932,-159.06,0.00028369,2]
[310351090,1704493842941,-170.18,0.000284,2]
[310351091,1704493842951,-333.40106,0.00028448,2]
[310351092,1704493842960,-631.01169547,0.00028497,2]
[310351094,1704493842969,-920.82235434,0.00028498,2]
[310351096,1704493842979,-1119.25352493,0.00028499,2]
[310351097,1704493842991,-2516.41547774,0.00028499,2]
[310351099,1704493845575,-400.46,0.00028068,2]
[310351100,1704493845585,-938.33,0.00028068,2]
[310351101,1704493845594,-340.89280837,0.00028499,2]
[310351102,1704493845631,-493.97416667,0.00028499,2]
[310351103,1704493845796,-80187.1997752,0.00028499,2]
[310351131,1704493848572,6050.41908392,0.00022854,2]
[310351154,1704494437343,288.83605602,0.00022,4]
[310351218,1704495031665,-250.0,0.00024362,2]
[310351223,1704495031679,-316.39842106,0.00024362,2]
[310351229,1704495031727,-54.08747121,0.00024362,2]
[310351231,1704495031736,-372.28000262,0.00024362,2]
[310351233,1704495031748,-2973.66988191,0.00024362,2]
[310351235,1704495031760,-914.84504639,0.00024362,2]
[310351237,1704495031769,-143.17400292,0.00024363,2]
[310351243,1704495031842,-18.17086831,0.00024363,2]
[310351244,1704495031851,-765.61617502,0.00024363,2]
[310351245,1704495031863,-872.73410263,0.00024363,2]
[310351246,1704495031897,-255.8730365,0.00024363,2]
[310351247,1704495031957,-1045.44667865,0.00024363,2]
[310351248,1704495031966,-150.0,0.00024366,2]
[310351249,1704495031975,-156.31473598,0.00024372,2]
[310351250,1704495031985,-399.99,0.00024474,2]
[310351251,1704495031995,-200.0,0.00025,2]
[310351252,1704495032005,-150.0,0.00025,2]
[310351253,1704495032018,-207.0,0.00025759,2]
[310351254,1704495032027,-156.31473598,0.00025788,2]
[310351255,1704495032036,-2724.88290497,0.000258,2]
[310351256,1704495032048,-48.11709503,0.000258,2]
[310351257,1704495032057,-1000.0,0.00025899,2]
[310351258,1704495032067,-6674.72197436,0.000259,2]
[310351260,1704495032079,-23053.27802564,0.000259,2]
[310351262,1704495032089,-515.41,0.00025935,2]
[310351264,1704495032098,-734.48,0.00025935,2]
[310351265,1704495032108,-547.95,0.00026112,2]
[310351266,1704495032117,-150.0,0.00026121,2]
[310351267,1704495032126,-250.0,0.00026144,2]
[310351268,1704495032137,-150.0,0.00026243,2]
[310351269,1704495032146,-23890.0,0.00026246,2]
[310351271,1704495032155,-159.06,0.00026373,2]
[310351273,1704495032165,-734.57,0.00026381,2]
[310351275,1704495032175,-903.11,0.00026381,2]
[310351277,1704495032184,-277.63700173,0.00026382,2]
[310351279,1704495032196,-187.96299827,0.00026382,2]
[310351281,1704495032205,-179.73,0.00026382,2]
[310351283,1704495032213,-155.43,0.00026455,2]
[310351285,1704495032223,-259.33587571,0.00026467,2]
[310351287,1704495032233,-532.51,0.00026478,2]
[310351289,1704495032244,-250.0,0.00026478,2]
[310351290,1704495032253,-175.3,0.00026527,2]
[310351291,1704495032262,-155.43,0.00026528,2]
[310351292,1704495032271,-157.63,0.00026564,2]
[310351293,1704495032281,-1358.92,0.00026592,2]
[310351294,1704495032291,-155.43,0.00026601,2]
[310351295,1704495032300,-467.49,0.0002664,2]
[310351296,1704495032311,-155.43,0.00026673,2]
[310351297,1704495032320,-173.82,0.00026685,2]
[310351298,1704495032330,-399.99,0.00026738,2]
[310351299,1704495032339,-155.43,0.00026746,2]
[310351300,1704495032348,-156.02,0.00026779,2]
[310351301,1704495032357,-210.0,0.00026803,2]
[310351302,1704495032366,-155.43,0.00026818,2]
[310351303,1704495032375,-155.43,0.00026891,2]
[310351304,1704495032385,-157.63,0.00026944,2]
[310351305,1704495032394,-155.43,0.00026963,2]
[310351306,1704495032404,-720.88,0.00026976,2]
[310351307,1704495032413,-1250.0,0.00027,3]
[310351308,1704495032423,-155.43,0.00027036,2]
[310351309,1704495032433,-333.40106,0.00027048,2]
[310351310,1704495032443,-155.43,0.00027108,2]
[310351311,1704495032452,-938.33,0.0002711,2]
[310351312,1704495032461,-400.46,0.0002711,2]
[310351313,1704495032470,-933.53,0.0002711,2]
[310351314,1704495032480,-400.46,0.0002711,2]
[310351315,1704495032490,-400.46,0.0002711,2]
[310351316,1704495032500,-170.61,0.0002711,2]
[310351317,1704495032509,-333.40106,0.00027148,2]
[310351318,1704495032518,-155.43,0.00027181,2]
[310351319,1704495032527,-156.31473598,0.00027204,2]
[310351320,1704495032536,-333.40106,0.00027248,2]
[310351321,1704495032546,-155.43,0.00027253,2]
[310351322,1704495032554,-157.63,0.00027323,2]
[310351323,1704495032563,-155.43,0.00027326,2]
[310351324,1704495032573,-938.33,0.00027341,2]
[310351325,1704495032582,-400.46,0.00027341,2]
[310351326,1704495032591,-333.40106,0.00027348,2]
[310351327,1704495032600,-1000.0,0.00027349,2]
[310351328,1704495032609,-150.1,0.00027361,6]
[310351329,1704495032619,-465.6,0.00027361,2]
[310351330,1704495032628,-155.0,0.00027397,2]
[310351331,1704495032637,-5331.2,0.00027397,2]
[310351332,1704495032648,-182.15,0.00027397,2]
[310351333,1704495032657,-155.43,0.00027399,2]
[310351334,1704495032666,-250.0,0.000274,2]
[310351335,1704495032676,-333.40106,0.00027448,2]
[310351336,1704495032685,-3180.04163262,0.00027453,2]
[310351337,1704495032694,-155.43,0.00027471,2]
[310351338,1704495032703,-938.33,0.00027541,2]
[310351339,1704495032712,-400.46,0.00027541,2]
[310351340,1704495032721,-155.43,0.00027544,2]
[310351341,1704495032730,-333.40106,0.00027548,2]
[310351342,1704495032739,-155.43,0.00027616,2]
[310351343,1704495032750,-938.33,0.00027641,2]
[310351344,1704495032759,-400.46,0.00027641,2]
[310351345,1704495032769,-333.40106,0.00027648,2]
[310351346,1704495032778,-155.43,0.00027689,2]
[310351347,1704495032787,-179.73,0.00027702,2]
[310351348,1704495032796,-157.63,0.00027703,2]
[310351349,1704495032806,-333.40106,0.00027748,2]
[310351350,1704495032815,-155.43,0.00027761,2]
[310351351,1704495032824,-155.43,0.00027834,2]
[310351352,1704495032835,-343.68553094,0.00027845,2]
[310351353,1704495032845,-333.40106,0.00027848,2]
[310351354,1704495032855,-6005.35,0.00027945,2]
[310351355,1704495032865,-169.72,0.00027945,2]
[310351356,1704495032875,-343.68553094,0.00027947,2]
[310351357,1704495032884,-333.40106,0.00027948,2]
[310351358,1704495032894,-629.3986,0.00027999,2]
[310351359,1704495032904,-364.5612,0.00027999,2]
[310351360,1704495032913,-333.40106,0.00028048,2]
[310351361,1704495032924,-343.68553094,0.00028048,2]
[310351362,1704495032934,-157.63,0.00028082,2]
[310351363,1704495032943,-51488.23640676,0.00028099,2]
[310351364,1704495033364,-242200.25355453,0.00028099,2]
[310351365,1704495033382,-895.33335285,0.00028099,2]
[310351366,1704495033396,-565.73454976,0.00028099,2]
[310351375,1704495037788,-26685.2180361,0.00028099,2]
[310351376,1704495037800,-333.40106,0.00028148,2]
[310351377,1704495037810,-31034.50647821,0.00028199,2]
[310351378,1704495037846,-1173.933,0.00028199,2]
[310351379,1704495037949,-445.46799996,0.00028199,2]
[310351380,1704495037961,-1076.31462604,0.00028199,2]
[310351381,1704495037973,-761.89216963,0.00028199,2]
[310351382,1704495037986,-365.80397817,0.00028199,2]
[310351383,1704495038004,-702.824154,0.00028199,2]
[310351384,1704495038112,-4250.57805386,0.00028199,2]
[310351385,1704495038123,-2713.4001,0.00028199,2]
[310351405,1704495040251,-500.0,0.00028199,2]
[310351407,1704495040268,-250.0,0.00028199,2]
[310351411,1704495040299,-648.37714593,0.00028199,2]
[310351412,1704495040355,-1106.40335378,0.00028199,2]
[310351413,1704495040372,-667.79630865,0.00028199,2]
[310351414,1704495040384,-700.43927189,0.00028199,2]
[310351415,1704495040396,-3400.86013248,0.00028199,2]
[310351416,1704495040408,-697.499999,0.00028199,2]
[310351451,1704495042720,-2121.87615936,0.00028199,2]
[310351454,1704495042735,-548.87967985,0.00028199,2]
[310351456,1704495042792,-4294.9,0.00028199,2]
[310351457,1704495042804,-4381.6,0.00028199,2]
[310351458,1704495042818,-480.11657429,0.00028199,2]
[310351459,1704495042895,-7050.90591642,0.00028199,2]
[310351460,1704495042951,-2370.55601116,0.00028199,2]
[310351461,1704495042963,-13703.0158256,0.00028199,2]
[310351462,1704495042975,-346.98199227,0.00028199,2]
[310351463,1704495043005,-972.39925064,0.00028199,2]
[310351483,1704495045758,-211.89834375,0.00027165,2]
[310351485,1704495045769,-155.0,0.00028198,2]
[310351487,1704495045778,-161.27389787,0.00028198,2]
[310351489,1704495045791,-1309.51027458,0.00028199,2]
[310351492,1704495045812,-3259.50000151,0.00028199,2]
[310351499,1704495045869,-306.1997,0.00028199,2]
[310351504,1704495045923,-280.84097529,0.00028199,2]
[310351505,1704495045940,-1098.9180921,0.00028199,2]
[310351506,1704495045978,-6977.70277533,0.00028199,2]
[310351507,1704495045988,-1000.0,0.00028199,2]
[310351508,1704495045997,-500.0,0.00028199,2]
[310351509,1704495046007,-151.0,0.00028199,7]
[310351510,1704495046018,-151.0,0.00028199,7]
[310351511,1704495046028,-1252.8,0.00028199,7]
[310351512,1704495046038,-1252.8,0.00028199,7]
[310351513,1704495046046,-267.491226,0.00028199,7]
[310351514,1704495046056,-170.565119,0.00028199,7]
[310351515,1704495046065,-170.565119,0.00028199,7]
[310351516,1704495046074,-151.0,0.00028199,7]
[310351517,1704495046083,-1364.59116125,0.00028199,2]
[310351518,1704495046093,-150.0,0.00028239,2]
[310351519,1704495046102,-1000.0,0.00028246,7]
[310351520,1704495046112,-333.40106,0.00028248,2]
[310351521,1704495046121,-185.09475924,0.00028289,2]
[310351522,1704495046130,-5660.3934,0.00028299,2]
[310351523,1704495046139,-11806.44021631,0.00028299,2]
[310351524,1704495046151,-50121.97119607,0.00028299,2]
[310351571,1704495060990,175.26,0.00028195,120]
[310351580,1704495614979,150.0,0.00022073,2]
[310351581,1704495616555,150.97750141,0.00022621,2]
[310351582,1704495625942,156.88326638,0.00022971,2]
[310351583,1704495882470,155.0,0.00020741,2]
[310351584,1704495895242,211.89834375,0.00022119,2]
[310351585,1704495970951,350.00051098,0.000229,4]
[310351586,1704496067851,350.00051098,0.000229,3]
[310351587,1704496084052,207.0,0.00022759,2]
[310351588,1704496180943,155.0,0.0002301,2]
[310351589,1704496182520,6421.18613973,0.0002301,2]
[310351590,1704496192302,3615.56141849,0.0002301,2]
[310351591,1704496193259,2939.6699928,0.0002301,2]
[310351592,1704496193748,282.83377143,0.0002301,2]
[310351593,1704496195179,416.9599042,0.0002301,2]
[310351597,1704496205085,1134.05061556,0.0002301,2]
[310351598,1704496209765,2607.067063,0.0002301,2]
[310351599,1704496216517,1174.88558174,0.0002301,2]
[310351600,1704496218808,211.10592611,0.0002301,2]
[310351601,1704496227663,25148.94681845,0.0002301,2]
[310351602,1704496227766,514.19161131,0.0002301,2]
[310351603,1704496229380,3037.08558605,0.0002301,2]
[310351607,1704496234166,-1129.24535294,0.00023011,2]
[310351608,1704496234229,-648.52868583,0.00023011,2]
[310351609,1704496234239,-424.98860836,0.00023011,2]
[310351610,1704496234251,-1517.938638,0.00023011,2]
[310351611,1704496234263,-188.98831442,0.00023011,2]
[310351612,1704496234273,-155.0,0.00023011,2]
[310351613,1704496234281,-282.83377143,0.00023011,2]
[310351614,1704496234290,-3615.56141849,0.00023011,2]
[310351615,1704496234299,-3052.39847963,0.00023011,2]
[310351616,1704496234313,-559.84340162,0.00023011,2]
[310351617,1704496234322,-1130.66147479,0.00023011,2]
[310351618,1704496234332,-1173.28577738,0.00023011,2]
[310351619,1704496234341,-1509.97929904,0.00023012,2]
[310351620,1704496234351,-33667.95985811,0.00023013,2]
[310351621,1704496234361,-300.0,0.00023015,2]
[310351622,1704496234370,-150.0,0.00023015,2]
[310351623,1704496234379,-936.02595153,0.00023032,2]
[310351624,1704496234388,-161.27389787,0.00023041,2]
[310351625,1704496234398,-400.02,0.00023073,2]
[310351626,1704496234407,-598.38979949,0.00023087,2]
[310351627,1704496234417,-20234.52496754,0.000231,2]
[310351628,1704496234427,-1090.97,0.000231,2]
[310351629,1704496234437,-31278.97739395,0.000231,2]
[310351630,1704496234458,-1186.69011417,0.000231,2]
[310351631,1704496234469,-269.42731393,0.000231,2]
[310351632,1704496234489,-18116.95517795,0.000231,2]
[310351633,1704496234497,-491.97,0.000231,2]
[310351634,1704496234507,-1991.6956,0.0002313,2]
[310351635,1704496234516,-732.44972791,0.00023284,2]
[310351636,1704496234526,-156.88326633,0.00023837,2]
[310351637,1704496234535,-2482.74,0.00024567,2]
[310351638,1704496234545,-6203.98,0.00024567,2]
[310351639,1704496234554,-156.88326633,0.00024703,2]
[310351640,1704496234564,-543.59,0.0002495,2]
[310351641,1704496234573,-150.0,0.00025,2]
[310351642,1704496234583,-500.0,0.00025041,2]
[310351643,1704496234592,-157.25,0.00025052,2]
[310351644,1704496234602,-508.84,0.00025134,2]
[310351645,1704496234611,-573.99,0.00025152,2]
[310351646,1704496234621,-150.0,0.00025284,2]
[310351647,1704496234631,-500.0,0.00025301,2]
[310351648,1704496234639,-181.11,0.00025309,2]
[310351649,1704496234652,-210.0,0.00025317,2]
[310351650,1704496234662,-400.02,0.00025337,2]
[310351651,1704496234673,-610.51,0.00025385,2]
[310351652,1704496234682,-2577.68,0.00025401,2]
[310351653,1704496234692,-250.0,0.00025476,2]
[310351654,1704496234702,-200.0,0.00025544,2]
[310351655,1704496234711,-157.25,0.00025553,2]
[310351656,1704496234721,-156.88326633,0.00025569,2]
[310351657,1704496234731,-714.31,0.00025672,2]
[310351658,1704496234741,-543.59,0.00025928,2]
[310351659,1704496234754,-426.01,0.00025981,2]
[310351660,1704496234764,-157.25,0.00026054,2]
[310351661,1704496234774,-150.0,0.00026079,2]
[310351662,1704496234783,-3180.04163262,0.00026347,2]
[310351663,1704496234793,-162.99,0.00026394,2]
[310351664,1704496234802,-156.88326633,0.00026436,2]
[310351665,1704496234812,-207.0,0.00026484,7]
[310351666,1704496234823,-157.25,0.00026555,2]
[310351667,1704496234833,-279.95435992,0.00026879,2]
[310351668,1704496234844,-543.59,0.00026906,2]
[310351669,1704496234854,-333.40106,0.00026948,2]
[310351670,1704496234864,-170.18,0.00027013,2]
[310351671,1704496234874,-333.40106,0.00027048,2]
[310351672,1704496234883,-157.25,0.00027056,2]
[310351673,1704496234893,-333.40106,0.00027148,2]
[310351674,1704496234903,-4601.91989485,0.00027151,2]
[310351675,1704496234912,-382.91152726,0.00027151,2]
[310351676,1704496234922,-156.8552177,0.00027151,2]
[310351677,1704496234932,-540.53733364,0.00027151,2]
[310351678,1704496234942,-1141.17784084,0.00027151,2]
[310351679,1704496234953,-16706.72309889,0.00027151,2]
[310351680,1704496234962,-1074.86246861,0.00027151,2]
[310351681,1704496234972,-541.22410251,0.00027152,2]
[310351682,1704496234982,-155.0,0.00027152,2]
[310351683,1704496234994,-393.68225135,0.00027153,2]
[310351684,1704496235004,-492.83979718,0.00027153,2]
[310351685,1704496235016,-333.40106,0.00027248,2]
[310351686,1704496235026,-227.70232845,0.0002729,2]
[310351687,1704496235036,-156.88326633,0.00027302,2]
[310351688,1704496235046,-333.40106,0.00027348,2]
[310351689,1704496235055,-155.0,0.00027397,2]